bitfinex/quotes_BTCUSD_20240721
["timestamp","ask_amount","ask_price","bid_price","bid_amount"]
[1721586254104,0.00755022,66826.0,66825.0,0.67321116]
[1721586254312,0.00755022,66826.0,66825.0,0.70331474]
[1721586254512,0.00755022,66826.0,66811.0,0.002794]
[1721586254513,0.00010104,66821.0,66811.0,0.002794]
[1721586254716,0.00010104,66819.0,66813.0,0.15438174]
[1721586254928,0.14,66818.0,66814.0,0.12707269]
[1721586255162,0.00755022,66826.0,66825.0,0.149644]
[1721586255163,0.07035022,66826.0,66825.0,0.149644]
[1721586255385,0.07035022,66826.0,66818.0,0.302113]
[1721586255589,0.00010104,66825.0,66821.0,0.149652]
[1721586255815,0.07035022,66826.0,66822.0,0.15438174]
[1721586256026,0.07035022,66826.0,66825.0,0.448933]
[1721586256234,0.00701001,66826.0,66825.0,0.80855347]
[1721586256444,0.00701001,66826.0,66825.0,0.4886223]
[1721586256658,0.00701001,66826.0,66825.0,1.0872003]
[1721586256861,0.00701001,66826.0,66825.0,1.3864893]
[1721586257285,0.00701001,66826.0,66825.0,1.3914893]
[1721586258511,0.00701001,66826.0,66825.0,1.4864893]
[1721586258919,0.00701001,66826.0,66825.0,1.5004893]
[1721586259337,0.00701001,66826.0,66825.0,0.8879113]
[1721586259558,0.00701001,66826.0,66825.0,0.84157983]
[1721586259764,0.00701001,66826.0,66825.0,0.54229083]
[1721586259963,0.00701001,66826.0,66825.0,0.44229083]
[1721586259964,0.14921105,66826.0,66825.0,0.44229083]
[1721586260172,0.14921105,66826.0,66825.0,0.12426509]
[1721586260381,0.14921105,66826.0,66818.0,0.149659]
[1721586260382,0.00010104,66825.0,66818.0,0.149659]
[1721586260594,0.00010104,66821.0,66819.0,0.22427458]
[1721586260803,0.00010104,66821.0,66818.0,0.15438174]
[1721586261009,0.0044182,66820.0,66819.0,0.27393331]
[1721586261206,0.0044182,66820.0,66819.0,0.57324931]
[1721586261414,0.14911001,66826.0,66819.0,0.57324931]
[1721586261415,0.14911001,66826.0,66819.0,0.27865705]
[1721586261615,0.14911001,66826.0,66819.0,0.448974]
[1721586261616,0.0044182,66820.0,66819.0,0.448974]
[1721586261855,0.00010104,66825.0,66824.0,0.149646]
[1721586262268,0.14911001,66826.0,66825.0,0.149644]
[1721586262470,0.14911001,66826.0,66825.0,1.16499521]
[1721586262471,0.00701001,66826.0,66825.0,1.16499521]
[1721586262622,0.00701001,66826.0,66825.0,1.12687516]
[1721586263229,0.00701001,66826.0,66825.0,1.42616416]
[1721586263409,0.00701001,66826.0,66825.0,1.12687516]
[1721586263607,0.00701001,66826.0,66825.0,1.26128015]
[1721586263815,0.00701001,66826.0,66825.0,0.84158616]
[1721586264270,0.00701001,66826.0,66825.0,0.54229716]
[1721586264484,0.00701001,66826.0,66825.0,0.54228402]
[1721586264697,0.00701001,66826.0,66825.0,0.84157302]
[1721586264908,0.00701001,66826.0,66825.0,0.82757302]
[1721586265113,0.00701001,66826.0,66825.0,1.23955012]
[1721586265323,0.00701001,66826.0,66825.0,1.25355012]
[1721586265537,0.00701001,66826.0,66825.0,1.14086202]
[1721586265760,0.00701001,66826.0,66825.0,1.12686202]
[1721586266173,0.00701001,66826.0,66825.0,1.14086202]
[1721586266342,0.0067407,66826.0,66825.0,0.84157302]
[1721586266624,0.0067407,66826.0,66825.0,0.38790879]
[1721586266804,0.0067407,66826.0,66825.0,0.46136771]
[1721586267006,0.0067407,66826.0,66825.0,0.54229053]
[1721586267233,0.0067407,66826.0,66825.0,0.13826479]
[1721586267234,0.00684174,66826.0,66825.0,0.13826479]
[1721586267581,0.00684174,66826.0,66825.0,0.014]
[1721586267582,0.0067407,66826.0,66825.0,0.014]
[1721586267811,0.00684174,66826.0,66825.0,0.014]
[1721586268056,0.00684174,66826.0,66819.0,0.299312]
[1721586268269,0.01373103,66826.0,66823.0,0.149648]
[1721586268479,0.01373103,66826.0,66824.0,0.002794]
[1721586268681,0.00684174,66826.0,66820.0,0.29191392]
[1721586268889,0.00684174,66826.0,66821.0,0.27397237]
[1721586268890,0.00435106,66825.0,66821.0,0.27397237]
[1721586269113,0.00684174,66826.0,66825.0,0.014]
[1721586269377,0.53756774,66826.0,66825.0,0.014]
[1721586269622,0.00010104,66818.0,66811.0,0.149675]
[1721586269846,0.4481247,66826.0,66804.0,0.002794]
[1721586269847,0.00010104,66813.0,66812.0,0.33862509]
[1721586270077,0.1488407,66826.0,66813.0,0.149671]
[1721586270078,0.00010104,66814.0,66813.0,0.149671]
[1721586270335,0.00010104,66825.0,66813.0,0.15737496]
[1721586270581,0.00010104,66820.0,66814.0,0.28146298]
[1721586270823,0.00010104,66822.0,66818.0,0.149658]
[1721586271070,0.1488407,66826.0,66819.0,0.40711653]
[1721586271288,0.1488407,66826.0,66820.0,0.12427235]
[1721586271525,0.1488407,66826.0,66825.0,0.149644]
[1721586271526,0.0067407,66826.0,66825.0,0.149644]
[1721586271727,0.0067407,66826.0,66825.0,1.1797059]
[1721586272347,0.0067407,66826.0,66825.0,1.4789949]
[1721586272774,0.0067407,66826.0,66825.0,1.1797059]
[1721586272995,0.0067407,66826.0,66825.0,1.12687609]
[1721586273222,0.0067407,66826.0,66825.0,0.84158709]
[1721586273419,0.0067407,66826.0,66825.0,1.14086574]
[1721586273622,0.0067407,66826.0,66825.0,0.84157679]
[1721586273833,0.0067407,66826.0,66825.0,0.71731474]
[1721586274044,0.0067407,66826.0,66825.0,1.25024378]
[1721586274467,0.0067407,66826.0,66825.0,1.53553278]
[1721586274652,0.0067407,66826.0,66825.0,1.54953278]
[1721586275139,0.0067407,66826.0,66825.0,1.25024378]
[1721586275366,0.0067407,66826.0,66825.0,1.12686473]
[1721586275568,0.0067407,66826.0,66825.0,0.23826099]
[1721586275857,0.0067407,66826.0,66825.0,0.38790499]
[1721586276096,0.0067407,66826.0,66825.0,0.37390499]
[1721586276333,0.0067407,66826.0,66825.0,0.67319651]
[1721586276582,0.0067407,66826.0,66825.0,0.37390751]
[1721586277325,0.0067407,66826.0,66825.0,0.52828925]
[1721586277558,0.0067407,66826.0,66825.0,0.54228925]
[1721586277786,0.0067407,66826.0,66825.0,0.23826351]
[1721586278021,0.0067407,66826.0,66825.0,0.67319651]
[1721586278261,0.0067407,66826.0,66825.0,0.77044616]
[1721586278736,0.0067407,66826.0,66825.0,0.78444616]
[1721586279216,0.0067407,66826.0,66825.0,1.23811434]
[1721586280035,0.05750174,66838.0,66834.0,0.149624]
[1721586280309,0.05750174,66838.0,66825.0,0.78918134]
[1721586280310,0.05750174,66838.0,66837.0,0.448852]
[1721586280582,0.002,66839.0,66838.0,0.149615]
[1721586280828,0.002,66839.0,66838.0,0.72748769]
[1721586281644,0.002,66839.0,66838.0,0.27864269]
[1721586281891,0.002,66839.0,66838.0,0.12426095]
[1721586282100,0.002,66839.0,66835.0,0.149621]
[1721586282304,0.002,66839.0,66825.0,0.19724965]
[1721586282305,0.002,66839.0,66836.0,0.12424854]
[1721586282513,0.002,66839.0,66838.0,0.012]
[1721586282731,0.002,66839.0,66838.0,0.13624854]
[1721586283831,0.002,66839.0,66838.0,0.12424854]
[1721586285015,0.002,66839.0,66838.0,0.012]
[1721586285238,0.002,66839.0,66838.0,0.13624965]
[1721586285433,0.002,66839.0,66838.0,0.75563869]
[1721586285584,0.00836,66846.0,66838.0,0.4067864]
[1721586285585,0.157958,66846.0,66838.0,0.4067864]
[1721586285821,0.00836,66846.0,66839.0,0.22703636]
[1721586286038,0.00685899,66845.0,66840.0,0.12424236]
[1721586286242,0.00685899,66845.0,66838.0,0.012]
[1721586286243,0.149613,66839.0,66838.0,0.012]
[1721586286446,0.449669,66839.0,66838.0,0.012]
[1721586286824,0.14962,66836.0,66829.0,0.002794]
[1721586287028,0.299231,66838.0,66830.0,0.12425931]
[1721586287029,0.149616,66838.0,66830.0,0.12425931]
[1721586287228,0.00083,66839.0,66833.0,0.149625]
[1721586287444,0.149618,66837.0,66834.0,0.12705331]
[1721586287729,0.299239,66836.0,66835.0,0.12425931]
[1721586287931,0.006859,66838.0,66828.0,0.399275]
[1721586288131,0.006859,66838.0,66829.0,0.16707755]
[1721586288333,0.006859,66838.0,66831.0,0.152424]
[1721586288612,0.00083,66839.0,66832.0,0.12426475]
[1721586288826,0.00083,66839.0,66836.0,0.149619]
[1721586288827,0.006859,66837.0,66836.0,0.149619]
[1721586289031,0.006859,66837.0,66836.0,0.57312275]
[1721586289433,0.00083,66839.0,66836.0,0.57312275]
[1721586289434,0.00083,66839.0,66836.0,0.27388375]
[1721586289650,0.00083,66839.0,66837.0,0.27667575]
[1721586289848,0.00685899,66838.0,66837.0,0.002794]
[1721586290069,0.00083,66839.0,66837.0,0.12425524]
[1721586290281,0.00083,66839.0,66838.0,0.12704924]
[1721586290411,0.00083,66839.0,66838.0,0.12425524]
[1721586290844,0.00083,66839.0,66838.0,0.12425344]
[1721586291271,0.00083,66839.0,66837.0,0.013]
[1721586291272,0.149615,66838.0,66837.0,0.013]
[1721586291463,0.149615,66838.0,66837.0,0.13725731]
[1721586291665,0.448845,66838.0,66837.0,0.12425731]
[1721586291877,0.00083,66839.0,66838.0,0.760075]
[1721586292107,0.00083,66839.0,66838.0,1.04150805]
[1721586292298,0.00083,66839.0,66838.0,0.57573939]
[1721586292495,0.00083,66839.0,66838.0,1.17419939]
[1721586292667,0.00083,66839.0,66838.0,0.73948405]
[1721586293096,9e-05,66852.0,66848.0,0.149593]
[1721586293292,9e-05,66852.0,66848.0,1.24214464]
[1721586293519,9e-05,66852.0,66848.0,2.49213094]
[1721586293726,9e-05,66852.0,66848.0,2.79245351]
[1721586293919,0.002,66859.0,66858.0,2.002093]
[1721586294275,0.00834,66876.0,66863.0,1.046916]
[1721586294484,0.00834,66876.0,66863.0,1.58074702]
[1721586294648,0.00834,66876.0,66863.0,1.53756598]
[1721586294867,0.00834,66876.0,66863.0,1.48756598]
[1721586295067,0.00834,66876.0,66863.0,1.42548229]
[1721586295268,0.00834,66876.0,66863.0,1.4530367]
[1721586295623,0.00834,66876.0,66863.0,1.5030367]
[1721586295923,0.00834,66876.0,66863.0,1.4530367]
[1721586296300,0.00834,66876.0,66863.0,0.8547987]
[1721586296508,0.0661,66871.0,66863.0,0.82724429]
[1721586296768,0.0803,66872.0,66863.0,0.82724335]
[1721586296929,0.00834,66876.0,66863.0,1.42548135]
[1721586297135,0.00834,66876.0,66863.0,1.01617874]
[1721586297337,0.00834,66876.0,66863.0,1.59381815]
[1721586297545,0.00834,66876.0,66863.0,1.57981815]
[1721586297914,0.00834,66876.0,66863.0,1.59381815]
[1721586298311,0.00834,66876.0,66863.0,1.63221218]
[1721586298732,0.00834,66876.0,66863.0,1.64621218]
[1721586299135,0.00834,66876.0,66863.0,1.59381815]
[1721586299373,0.00834,66876.0,66863.0,1.65881815]
[1721586299574,0.00834,66876.0,66863.0,1.53464731]
[1721586299782,0.00834,66876.0,66863.0,1.71120549]
[1721586299963,0.00834,66876.0,66863.0,1.65881168]
[1721586300205,0.00834,66876.0,66863.0,1.64481168]
[1721586300412,0.00834,66876.0,66863.0,1.34569268]
[1721586300621,0.00834,66876.0,66863.0,1.35969268]
[1721586300826,0.00834,66876.0,66863.0,1.65881168]
[1721586301058,0.00834,66876.0,66863.0,1.34569268]
[1721586301252,0.00834,66876.0,66863.0,1.64481168]
[1721586301403,0.00834,66876.0,66863.0,1.65881168]
[1721586302375,0.00834,66876.0,66863.0,2.15881168]
[1721586302627,0.00834,66876.0,66863.0,1.64481168]
[1721586304083,0.0627,66869.0,66863.0,0.39254611]
[1721586304316,0.0627,66869.0,66863.0,0.13816437]
[1721586304317,0.1645099,66864.0,66863.0,0.13816437]
[1721586304559,0.0149529,66864.0,66863.0,0.15438174]
[1721586304871,0.1645109,66864.0,66863.0,0.014]
[1721586305492,0.149562,66862.0,66852.0,0.149582]
[1721586305748,0.0149529,66864.0,66863.0,0.014]
[1721586305749,0.4636239,66864.0,66863.0,0.014]
[1721586305999,0.9005379,66864.0,66863.0,0.014]
[1721586306507,0.30177026,66864.0,66863.0,0.014]
[1721586306768,0.15221326,66864.0,66863.0,0.014]
[1721586307718,0.09071326,66864.0,66854.0,0.149579]
[1721586307964,0.149562,66862.0,66855.0,0.15717574]
[1721586308214,0.09071326,66864.0,66856.0,0.149574]
[1721586308456,0.09071326,66864.0,66860.0,0.29913]
[1721586308700,0.09071326,66864.0,66863.0,0.014]
[1721586309436,0.53938426,66864.0,66863.0,0.014]
[1721586309675,0.83849826,66864.0,66863.0,0.014]
[1721586309922,0.53938426,66864.0,66863.0,0.014]
[1721586310162,0.299141,66858.0,66850.0,0.002794]
[1721586310398,0.09071326,66864.0,66856.0,0.014]
[1721586310619,0.149569,66859.0,66856.0,0.014]
[1721586310841,0.149569,66859.0,66846.0,0.002794]
[1721586310842,0.0764,66856.0,66846.0,0.002794]
[1721586311219,0.12717479,66857.0,66828.0,0.002794]
[1721586311220,0.0619,66842.0,66828.0,0.002794]
[1721586311223,0.149624,66835.0,66828.0,0.002794]
[1721586311415,0.299223,66840.0,66826.0,0.0110553]
[1721586311694,0.0764,66841.0,66827.0,0.12425341]
[1721586311911,0.0764,66841.0,66828.0,0.002794]
[1721586312073,0.0764,66841.0,66827.0,0.002794]
[1721586312074,0.299231,66838.0,66827.0,0.002794]
[1721586312247,0.299231,66838.0,66825.0,0.15529474]
[1721586312248,0.073674,66838.0,66825.0,0.15529474]
[1721586312461,0.149623,66835.0,66826.0,0.002794]
[1721586312666,0.0764,66841.0,66826.0,0.299281]
[1721586312871,0.0764,66841.0,66826.0,0.149641]
[1721586313340,0.149627,66833.0,66827.0,0.002794]
[1721586313580,0.149627,66833.0,66826.0,0.006794]
[1721586313780,0.299241,66836.0,66826.0,0.006794]
[1721586313781,0.299241,66836.0,66826.0,0.004]
[1721586313968,0.14963,66832.0,66826.0,0.004]
[1721586314172,0.14963,66832.0,66825.0,0.000913]
[1721586314173,0.149631,66831.0,66825.0,0.000913]
[1721586314396,0.299252,66834.0,66826.0,0.001]
[1721586314610,0.299263,66831.0,66826.0,0.001]
[1721586314827,0.0764,66841.0,66826.0,0.001]
[1721586314828,0.44892,66827.0,66826.0,0.001]
[1721586315045,0.44892,66827.0,66825.0,0.000913]
[1721586315046,0.525326,66826.0,66825.0,0.000913]
[1721586315463,0.82461,66826.0,66825.0,0.000913]
[1721586315890,0.525326,66826.0,66825.0,0.000913]
[1721586316104,0.82461,66826.0,66825.0,0.000913]
[1721586316325,0.82433984,66826.0,66825.0,0.000913]
[1721586316773,0.52505584,66826.0,66825.0,0.000913]
[1721586317012,0.149623,66835.0,66825.0,0.000913]
[1721586317224,0.149628,66832.0,66825.0,0.0309351]
[1721586317471,0.0619,66835.0,66825.0,0.0309351]
[1721586317472,0.299254,66833.0,66825.0,0.000913]
[1721586317699,0.0619,66835.0,66825.0,0.014913]
[1721586318133,0.299249,66834.0,66825.0,0.000913]
[1721586318344,0.149627,66833.0,66825.0,0.0309354]
[1721586318561,0.0619,66835.0,66826.0,0.002794]
[1721586318873,0.44892,66827.0,66826.0,0.002794]
[1721586319021,0.44892,66827.0,66825.0,0.011913]
[1721586319022,0.149642,66826.0,66825.0,0.011913]
[1721586319454,0.14964,66827.0,66825.0,0.011913]
[1721586319689,0.149636,66829.0,66825.0,0.011913]
[1721586319931,0.0619,66835.0,66825.0,0.000913]
[1721586320306,0.0619,66835.0,66825.0,0.008913]
[1721586320623,0.14964,66827.0,66826.0,0.002794]
[1721586320862,0.74821,66826.0,66825.0,0.014913]
[1721586321810,0.448926,66826.0,66825.0,0.014913]
[1721586322043,0.448926,66826.0,66815.0,0.002794]
[1721586322044,0.299284,66826.0,66815.0,0.148373]
[1721586322291,0.149649,66823.0,66815.0,0.148373]
[1721586322545,0.002794,66822.0,66815.0,0.143373]
[1721586322779,0.002794,66822.0,66811.0,0.299351]
[1721586322780,0.152445,66822.0,66814.0,0.149669]
[1721586323020,0.002794,66822.0,66814.0,0.149669]
[1721586323502,0.002794,66822.0,66811.0,0.45373274]
[1721586323731,0.149649,66823.0,66814.0,0.149667]
[1721586324012,0.152445,66822.0,66815.0,0.149666]
[1721586324254,0.152445,66822.0,66816.0,0.141663]
[1721586324255,0.002794,66822.0,66816.0,0.141663]
[1721586324497,0.152443,66823.0,66814.0,0.163667]
[1721586324737,0.149652,66822.0,66811.0,0.45373274]
[1721586324985,0.002794,66821.0,66815.0,0.149666]
[1721586325217,0.01976922,66823.0,66815.0,0.149666]
[1721586325218,0.002794,66822.0,66815.0,0.149666]
[1721586325691,0.152446,66822.0,66814.0,0.163668]
[1721586325954,0.002794,66822.0,66814.0,0.014]
[1721586326212,0.149638,66828.0,66820.0,0.149655]
[1721586326438,0.149638,66828.0,66814.0,0.014]
[1721586326439,0.002794,66827.0,66817.0,0.299323]
[1721586326681,0.002794,66827.0,66818.0,0.14966]
[1721586326906,0.002794,66829.0,66818.0,0.14966]
[1721586327167,0.299275,66828.0,66818.0,0.149659]
[1721586327436,0.149643,66826.0,66819.0,0.149657]
[1721586327907,0.03559142,66826.0,66817.0,0.014]
[1721586328129,0.002794,66825.0,66821.0,0.149652]
[1721586328329,0.299258,66832.0,66818.0,0.014]
[1721586328330,0.152431,66829.0,66818.0,0.014]
[1721586328540,0.002794,66829.0,66821.0,0.149653]
[1721586328745,0.002794,66829.0,66818.0,0.014]
[1721586329186,0.15243,66829.0,66820.0,0.448963]
[1721586329430,0.149638,66828.0,66821.0,0.149653]
[1721586329621,0.002794,66827.0,66819.0,0.149656]
[1721586329772,0.152435,66827.0,66820.0,0.149655]
[1721586330119,0.152435,66827.0,66819.0,0.149657]
[1721586330358,0.002794,66824.0,66818.0,0.149658]
[1721586330770,0.002794,66824.0,66815.0,0.299333]
[1721586330972,0.002794,66824.0,66819.0,0.014]
[1721586331536,0.002794,66824.0,66818.0,0.149659]
[1721586331761,0.0524226,66824.0,66818.0,0.163659]
[1721586331974,0.15244,66824.0,66818.0,0.014]
[1721586332184,0.1431,66823.0,66818.0,0.014]
[1721586332428,0.149658,66819.0,66818.0,0.014]
[1721586332847,0.3183493,66822.0,66818.0,0.014]
[1721586333056,0.3183493,66822.0,66808.0,0.299364]
[1721586333057,0.14966,66818.0,66810.0,0.149677]
[1721586333236,0.002794,66817.0,66810.0,0.149677]
[1721586333461,0.152456,66817.0,66810.0,0.149677]
[1721586333817,0.152456,66817.0,66807.0,0.00862439]
[1721586333818,0.002794,66817.0,66807.0,0.00862439]
[1721586334027,0.149665,66816.0,66808.0,0.12429351]
[1721586334243,0.448974,66819.0,66818.0,0.014]
[1721586334478,0.149658,66819.0,66818.0,0.014]
[1721586334688,0.14966,66818.0,66811.0,0.149675]
[1721586334895,0.002794,66817.0,66808.0,0.299364]
[1721586335118,0.299285,66826.0,66809.0,0.12429269]
[1721586335119,0.002794,66819.0,66809.0,0.12429269]
[1721586335330,0.302096,66822.0,66810.0,0.12429269]
[1721586335522,0.149659,66819.0,66811.0,0.12429269]
[1721586335734,0.152454,66818.0,66809.0,0.299357]
[1721586335940,0.152454,66818.0,66810.0,0.12429261]
[1721586335941,0.002794,66818.0,66810.0,0.12429261]
[1721586336153,0.0445196,66822.0,66811.0,0.27396661]
[1721586336378,0.149656,66820.0,66812.0,0.12429261]
[1721586336659,0.149656,66820.0,66818.0,0.014]
[1721586336833,0.002794,66819.0,66818.0,0.014]
[1721586337025,0.22827376,66821.0,66812.0,0.149672]
[1721586337026,0.15245,66820.0,66812.0,0.149672]
[1721586337236,0.15245,66820.0,66813.0,0.12428886]
[1721586337237,0.149658,66819.0,66813.0,0.12428886]
[1721586337436,0.14966,66818.0,66814.0,0.12428886]
[1721586337791,0.299311,66820.0,66811.0,0.014]
[1721586337792,0.299307,66821.0,66815.0,0.12428958]
[1721586337998,0.149659,66819.0,66816.0,0.12428958]
[1721586338211,0.14966,66818.0,66811.0,0.163674]
[1721586338581,0.14966,66818.0,66812.0,0.12428921]
[1721586338786,0.14966,66818.0,66813.0,0.12428921]
[1721586338996,0.299311,66820.0,66814.0,0.12428921]
[1721586338997,0.149663,66817.0,66814.0,0.12428921]
[1721586339209,0.149663,66817.0,66806.0,0.15438174]
[1721586339210,0.149663,66817.0,66815.0,0.12428921]
[1721586339432,0.149663,66817.0,66810.0,0.149677]
[1721586339643,0.149663,66817.0,66811.0,0.12429145]
[1721586339846,0.149663,66817.0,66812.0,0.12429225]
[1721586340052,0.149663,66817.0,66814.0,0.014]
[1721586340265,0.0448974,66817.0,66814.0,0.014]
[1721586340483,0.149666,66815.0,66814.0,0.014]
[1721586340705,0.149666,66815.0,66814.0,0.12429736]
[1721586340916,0.32071,66823.0,66814.0,0.12429736]
[1721586340917,0.002794,66818.0,66814.0,0.12429736]
[1721586341130,0.1583,66821.0,66815.0,0.12429736]
[1721586341346,0.1583,66821.0,66811.0,0.014]
[1721586341347,0.149662,66817.0,66816.0,0.12429736]
[1721586341794,0.448987,66817.0,66816.0,0.12429736]
[1721586343348,0.448987,66817.0,66804.0,0.00874518]
[1721586343349,0.1583,66820.0,66804.0,0.00874518]
[1721586343559,0.1583,66815.0,66794.0,0.059969]
[1721586343767,0.149687,66806.0,66803.0,0.12431781]
[1721586343988,0.1583,66812.0,66804.0,0.12431479]
[1721586344190,0.29936,66809.0,66805.0,0.12431479]
[1721586344396,0.29936,66809.0,66806.0,0.12431479]
[1721586344606,0.494813,66808.0,66807.0,0.12431321]
[1721586344821,0.748412,66808.0,66807.0,0.12431321]
[1721586345025,0.526947,66808.0,66807.0,0.12431321]
[1721586345233,0.526947,66808.0,66791.0,0.059972]
[1721586345234,0.44908,66803.0,66792.0,0.149717]
[1721586345447,0.2323275,66803.0,66802.0,0.12523446]
[1721586345676,0.44908,66803.0,66802.0,0.12523446]
[1721586345887,0.0779,66808.0,66802.0,0.12523446]
[1721586346095,0.149673,66813.0,66803.0,0.29566728]
[1721586346304,0.149673,66813.0,66803.0,0.29566184]
[1721586346305,0.149674,66812.0,66803.0,0.29566184]
[1721586346515,0.0779,66818.0,66802.0,0.150607]
[1721586346516,0.0779,66818.0,66804.0,0.12429526]
[1721586346719,0.149672,66813.0,66805.0,0.12430071]
[1721586346922,0.149674,66812.0,66806.0,0.12430071]
[1721586347156,0.01404,66817.0,66802.0,0.012913]
[1721586347157,0.149682,66808.0,66807.0,0.12430071]
[1721586347369,0.748412,66808.0,66807.0,0.12430071]
[1721586347846,0.05,66816.0,66807.0,0.12431915]
[1721586348080,0.299383,66804.0,66803.0,0.01]
[1721586348332,0.449074,66804.0,66803.0,0.13431837]
[1721586348577,0.149691,66804.0,66803.0,0.13431837]
[1721586348819,0.149691,66804.0,66802.0,0.000913]
[1721586348820,0.149693,66803.0,66802.0,0.000913]
[1721586349311,0.149693,66803.0,66802.0,0.1252325]
[1721586349843,0.44908,66803.0,66802.0,0.1252325]
[1721586350089,0.149693,66803.0,66802.0,0.1252325]
[1721586350559,0.14969,66805.0,66802.0,0.12157163]
[1721586350826,0.299375,66806.0,66802.0,0.012]
[1721586351011,0.002794,66805.0,66802.0,0.012]
[1721586351212,0.149693,66803.0,66802.0,0.012]
[1721586351808,0.149693,66803.0,66796.0,0.149708]
[1721586352002,0.002794,66802.0,66796.0,0.149708]
[1721586352240,0.149698,66801.0,66794.0,0.149712]
[1721586352497,0.299367,66808.0,66794.0,0.149712]
[1721586352498,0.149693,66804.0,66796.0,0.149707]
[1721586352730,0.149694,66803.0,66796.0,0.149707]
[1721586352949,0.0625,66819.0,66801.0,0.07717479]
[1721586353188,0.002794,66817.0,66806.0,0.299373]
[1721586353439,0.002794,66817.0,66808.0,0.149681]
[1721586353440,0.149665,66816.0,66808.0,0.149681]
[1721586353676,0.149669,66814.0,66803.0,0.299387]
[1721586353916,0.002794,66813.0,66807.0,0.149683]
[1721586354145,0.149674,66812.0,66805.0,0.149688]
[1721586354377,0.23342297,66812.0,66805.0,0.149688]
[1721586354623,0.002794,66811.0,66806.0,0.149686]
[1721586354863,0.002794,66812.0,66804.0,0.299382]
[1721586355121,0.349257,66833.0,66808.0,0.07717479]
[1721586355122,0.002794,66817.0,66808.0,0.07717479]
[1721586355354,0.62134871,66832.0,66808.0,0.07717479]
[1721586355355,0.61547371,66831.0,66823.0,0.149649]
[1721586355600,0.46304871,66830.0,66823.0,1.29230153]
[1721586355837,0.0612,66846.0,66823.0,2.016317]
[1721586356092,0.002794,66845.0,66823.0,2.016317]
[1721586356297,0.29924,66836.0,66823.0,1.04124821]
[1721586356508,0.00057069,66824.0,66823.0,0.05243416]
[1721586356704,0.00057069,66824.0,66817.0,0.05243416]
[1721586356906,0.00057069,66824.0,66818.0,0.15438174]
[1721586356907,0.149649,66823.0,66818.0,0.15438174]
[1721586357126,0.00057069,66824.0,66813.0,0.16940388]
[1721586357127,0.00057069,66824.0,66813.0,0.22964635]
[1721586357349,0.00057069,66824.0,66814.0,0.15438174]
[1721586357558,0.149656,66820.0,66814.0,0.15438174]
[1721586357760,0.149651,66822.0,66814.0,0.15438174]
[1721586357960,0.149654,66821.0,66814.0,0.15438174]
[1721586358162,0.00057069,66824.0,66814.0,0.30405074]
[1721586358361,0.002794,66823.0,66811.0,0.0085533]
[1721586358648,0.14966,66819.0,66812.0,0.27867398]
[1721586358781,0.002794,66818.0,66813.0,0.12429224]
[1721586358964,0.002794,66818.0,66812.0,0.15438174]
[1721586358965,0.149661,66818.0,66814.0,0.12429224]
[1721586359164,0.002794,66817.0,66815.0,0.12429224]
[1721586359384,0.149657,66820.0,66816.0,0.12429224]
[1721586359629,0.299307,66821.0,66812.0,0.15438174]
[1721586359630,0.149658,66819.0,66817.0,0.20146703]
[1721586359846,0.149658,66819.0,66818.0,0.002794]
[1721586359847,0.74829,66819.0,66818.0,0.002794]
[1721586360067,0.1583,66837.0,66814.0,0.014]
[1721586360068,0.299299,66823.0,66814.0,0.014]
[1721586360297,0.3288,66828.0,66818.0,0.03434102]
[1721586360298,0.1583,66828.0,66818.0,0.03434102]
[1721586360514,0.1705,66840.0,66814.0,0.014]
[1721586360515,0.29922,66841.0,66823.0,0.03434102]
[1721586360735,0.31482498,66853.0,66817.0,0.1705]
[1721586360736,0.04381486,66850.0,66824.0,0.002794]
[1721586361007,0.1583,66844.0,66825.0,0.12427877]
[1721586361198,0.06681486,66852.0,66823.0,0.03713502]
[1721586361199,0.299149,66857.0,66843.0,0.07717479]
[1721586361450,0.0657223,66860.0,66844.0,0.002794]
[1721586361451,0.15438174,66854.0,66844.0,0.002794]
[1721586361598,0.144599,66845.0,66844.0,0.002794]
[1721586361812,0.299164,66853.0,66844.0,0.002794]
[1721586362017,0.15438174,66854.0,66849.0,0.03434102]
[1721586362018,0.149589,66850.0,66849.0,0.03434102]
[1721586362686,0.149589,66850.0,66843.0,0.07717479]
[1721586362891,0.0611,66852.0,66844.0,0.002794]
[1721586363098,0.210684,66852.0,66851.0,0.07717479]
[1721586363297,0.0611,66852.0,66851.0,0.07717479]
[1721586363718,0.0812,66853.0,66851.0,0.07717479]
[1721586364127,0.14958,66854.0,66851.0,0.07717479]
[1721586364355,0.0611,66857.0,66851.0,0.08489227]
[1721586364555,0.0812,66860.0,66851.0,0.08489227]
[1721586364556,0.0812,66860.0,66852.0,0.03434102]
[1721586364769,0.230767,66860.0,66858.0,0.07717479]
[1721586365245,0.45739,66870.0,66859.0,0.00771748]
[1721586365246,0.149554,66866.0,66859.0,0.00771748]
[1721586365449,0.149554,66866.0,66858.0,0.07717479]
[1721586365450,0.149558,66864.0,66858.0,0.07717479]
[1721586365663,0.149553,66866.0,66858.0,0.07717479]
[1721586366109,0.0812,66867.0,66858.0,0.07717479]
[1721586366110,0.23075,66867.0,66858.0,0.07717479]
[1721586366315,0.23075,66867.0,66858.0,0.11151581]
[1721586366519,0.23075,66867.0,66859.0,0.03434102]
[1721586366724,0.0812,66867.0,66859.0,0.03434102]
[1721586366934,0.307404,66876.0,66865.0,0.07717479]
[1721586367151,0.14954,66872.0,66865.0,0.07717479]
[1721586367371,0.388604,66876.0,66872.0,0.11151581]
[1721586367372,0.00834,66876.0,66872.0,0.11151581]
[1721586367587,0.00834,66876.0,66872.0,0.07717479]
[1721586367797,0.00834,66876.0,66872.0,0.11151581]
[1721586367999,0.00834,66876.0,66873.0,0.03434102]
[1721586368215,0.00834,66876.0,66875.0,0.03434102]
[1721586368419,0.00834,66876.0,66874.0,0.01615158]
[1721586368841,0.00834,66876.0,66874.0,0.0504926]
[1721586369045,0.00834,66876.0,66874.0,0.01615158]
[1721586369248,0.00834,66876.0,66873.0,0.05]
[1721586369448,0.157872,66876.0,66873.0,0.05]